Cogmind - Beta 9 @@@ ROGUE MODE // 2019.10.22 @ 11:56:25 Player: 5taquitos Result: Destroyed by YI-UF0 with YI-UF0's Doublenader Performance ------------- Evolutions (0) 0 Regions Visited (2) 400 Robots Destroyed (13) 65 Value Destroyed (367) 367 Prototype IDs (0) 0 Alien Tech Used (0) 0 Bonus (0) 0 TOTAL SCORE: 832 Bonus ------- None Cogmind --------- Core Integrity 0/250 Matter 296/300 Energy 321/400 System Corruption 1% Temperature Cool (0) Location -10/Mines Parts ------- Power (1) Propulsion (2) Aluminum Leg Aluminum Leg Utility (2) Large Storage Unit Large Battery Weapon (2) Particle Cannon EMP Blaster Inventory (10) VTOL Module VTOL Module Improved Heat Sink ECM Suite Core Shielding Particle Cannon Light Assault Rifle Grenade Launcher Peak State ------------ Power Ion Engine Propulsion Aluminum Leg Aluminum Leg Utility Large Storage Unit Large Battery Weapon Particle Cannon Light Assault Rifle Inventory VTOL Module VTOL Module ECM Suite Core Shielding Particle Cannon EMP Blaster [Rating: 9] Favorites ----------- Power Light Ion Engine Engine Light Ion Engine Propulsion Light Treads Treads Light Treads Leg Aluminum Leg Utility Small Storage Unit Device ECM Suite Storage Small Storage Unit Weapon Medium Laser Energy Gun Medium Laser Energy Cannon Particle Cannon Ballistic Gun Light Assault Rifle Launcher EMP Blaster Build | -11 -10 -10 ------- Run | Scr Mat Min Slots Evolved . | . . . Power . | . . . Propulsion . | . . . Utility . | . . . Weapon . | . . . Parts Attached 19 | 6 10 3 Power 4 | 1 2 1 Engine 4 | 1 2 1 Core . | . . . Reactor . | . . . Propulsion 4 | 2 2 . Treads 2 | 2 . . Leg 2 | . 2 . Wheel . | . . . Hover . | . . . Flight . | . . . Utility 5 | 1 4 . Device 1 | . 1 . Storage 4 | 1 3 . Processor . | . . . Hackware . | . . . Protection . | . . . Artifact . | . . . Weapon 6 | 2 2 2 Energy Gun 2 | 2 . . Energy Cannon 1 | . . 1 Ballistic Gun 2 | . 2 . Ballistic Cannon . | . . . Launcher 1 | . . 1 Special Weapon . | . . . Impact Weapon . | . . . Slashing Weapon . | . . . Piercing Weapon . | . . . Special Melee Weapon . | . . . Unidentified Prototypes . | . . . Parts Lost 5 | . 3 2 Power 2 | . 1 1 Propulsion . | . . . Utility . | . . . Weapon 3 | . 2 1 Highest Loss Streak 2 | . 2 2 Average Slot Usage (%) 91 | . 93 86 Engine 9 | . 14 1 Treads 6 | . 9 . Leg 21 | . 18 28 Storage 24 | . 22 28 Energy Gun 2 | . 4 . Energy Cannon 4 | . . 13 Ballistic Gun 15 | . 22 1 Launcher 4 | . . 13 Naked Turns . | . . . Heaviest Build 27 | 11 26 27 Greatest Support 40 | 40 40 20 Greatest Overweight (x) 1 | . 1 1 Average Overweight (x) . | . . 1 Largest Inventory Capacity 10 | 6 10 10 Average Capacity 6 | 5 6 10 Most Carried 8 | 6 7 8 Average Carried 6 | 5 5 7 Final Capacity 10 | . . 10 Final Carried 8 | . . 8 Class Distribution -------------------- 100% | Mutant Dominant Class ---------------- Mutant | -10/Materials Mutant | -10/Mines Resources | -11 -10 -10 ----------- Run | Scr Mat Min Matter Collected 441 | 220 173 48 Remotely . | . . . Salvage Created 446 | . 352 94 Parts 31 | . 28 3 Haulers Intercepted . | . . . Recyclers Shooed 1 | . 1 . Parts Field Recycled . | . . . Retrieved Matter . | . . . Parts Self-Destructed . | . . . Prevented . | . . . Kills | -11 -10 -10 ------- Run | Scr Mat Min Combat Hostiles Destroyed 12 | . 10 2 Guns 11 | . 10 1 Cannons 1 | . . 1 Classes Destroyed 3 | . 3 . Builder 1 | . 1 . Swarmer 3 | . 3 . Grunt 9 | . 7 2 Best Kill Streak 4 | . 4 2 Combat Bots Only 3 | . 3 2 Max Kills in Single Turn 1 | . 1 1 Gunslinging . | . . . Exploded . | . . . Melee . | . . . Uniques/NPCs Destroyed . | . . . Combat | -11 -10 -10 -------- Run | Scr Mat Min Damage Taken 1079 | 36 708 335 Core 274 | 19 164 91 Absorbed by Shields . | . . . Core Remaining (%) 92 | 92 . . Volleys Fired 60 | . 48 12 Largest 2 | . 2 2 Hottest 101 | . 90 101 Shots Fired 100 | . 76 24 Gun 92 | . 76 16 Cannon 4 | . . 4 Launcher 4 | . . 4 Special . | . . . Kinetic 66 | . 50 16 Thermal 18 | . 14 4 Explosive . | . . . Electromagnetic 16 | . 12 4 Robot Hit Streak 8 | . 8 7 Robot Miss Streak 3 | . 3 2 Penetration Max . | . . . Secondary Targets 1 | . 1 . Max Gunslinging Chain 1 | . 1 . Shots Hit Robots 63 | . 45 18 Core Hits 25 | . 21 4 Critical Hits . | . . . Critical Kills . | . . . Critical Parts Destroyed . | . . . Melee Attacks . | . . . Impact . | . . . Slashing . | . . . Piercing . | . . . Sneak Attacks . | . . . Combat Hostiles . | . . . Follow-up Attacks . | . . . Damage Inflicted 721 | 1 453 267 Guns 563 | . 453 110 Cannons 61 | . . 61 Explosions 88 | . . 88 Melee . | . . . Ramming 9 | 1 . 8 Kinetic 389 | . 279 110 Thermal 135 | . 74 61 Explosive . | . . . Electromagnetic 188 | . 100 88 Impact . | . . . Slashing . | . . . Piercing . | . . . Highest Corruption 1 | . 1 1 Average Corruption 1 | . 1 1 Corruption Purged . | . . . Effects 3 | . 2 1 Energy Discharges 1 | . . 1 Data Loss (minor) 2 | . 2 . Overload Shots . | . . . Overflow Damage 17 | . . 17 Projectiles . | . . . Explosions 17 | . . 17 Melee . | . . . Knockbacks . | . . . Impact . | . . . Kinetic . | . . . Secondary . | . . . Self-Inflicted Damage 58 | . . 58 Shots 4 | . . 4 Rammed 2 | 1 . 1 Targets Rammed 2 | 1 . 1 Kicked . | . . . Crushed . | . . . Highest Temperature 460 | . 460 84 Average Temperature 153 | . 200 29 Received Heat Transfer 495 | . 360 135 Effects 4 | . 4 . Shutdowns 2 | . 2 . Interference 1 | . 1 . Damage (minor) 1 | . 1 . Siege Activations . | . . . Robots Corrupted . | . . . Combat Hostiles . | . . . Parts Fried . | . . . Impact Corruptions . | . . . Robots Melted . | . . . Combat Hostiles . | . . . Parts Melted 1 | . 1 . Heat Transferred 333 | . 222 111 Parts Sabotaged . | . . . Parts Stolen . | . . . Parts Stripped . | . . . Power Chain Reactions . | . . . Missiles Intercepted . | . . . Alert | -11 -10 -10 ------- Run | Scr Mat Min Peak Influence 167 | 15 167 72 Average Influence 5 | . 94 70 Maximum Alert Level . | . . . Low Security (%) 100 | . . . Level 1 . | . . . Level 2 . | . . . Level 3 . | . . . Level 4 . | . . . Level 5 . | . . . High Security . | . . . Max Security . | . . . Squads Dispatched 2 | . 2 . Investigation 1 | . 1 . Extermination . | . . . Reinforcement 1 | . 1 . Assault . | . . . Garrison . | . . . Intercept . | . . . Construction Impeded . | . . . Haulers Reinforced . | . . . Stealth | -11 -10 -10 --------- Run | Scr Mat Min Distress Signals 1 | . 1 . Communications Jammed . | . . . Distress Signals . | . . . Times Spotted 26 | 7 15 4 Peak Tracking Total 7 | 7 5 2 Tactical Retreats 1 | . 1 . Traps | -11 -10 -10 ------- Run | Scr Mat Min Traps Triggered . | . . . Indirectly . | . . . Trap Hack Attempts . | . . . Triggered . | . . . Disarmed . | . . . Reprogrammed . | . . . Reused . | . . . Traps Extracted . | . . . Installed . | . . . Triggered . | . . . Machines | -11 -10 -10 ---------- Run | Scr Mat Min Machines Disabled . | . . . Max in Single Turn . | . . . Machines Sabotaged . | . . . Garrisons Compromised . | . . . Overloaded Fab Kills . | . . . Fab Network Shutdowns . | . . . Hacking | -11 -10 -10 --------- Run | Scr Mat Min Machines Accessed 4 | . 4 . Terminals 4 | . 4 . Fabricators . | . . . Repair Stations . | . . . Recycling Units . | . . . Scanalyzers . | . . . Garrison Access . | . . . Total Hacks 11 | . 11 . Successful 4 | . 4 . Failed 7 | . 7 . Catastrophic 1 | . 1 . Database Lockouts . | . . . Manual 2 | . 2 . Terminals 11 | . 11 . Fabricators . | . . . Repair Stations . | . . . Recycling Units . | . . . Scanalyzers . | . . . Garrison Access . | . . . Terminal Hacks 4 | . 4 . Repair Station Index 1 | . 1 . Investigation Status 1 | . 1 . Hauler Manifests 1 | . 1 . Zone Layout 1 | . 1 . Fabricator Hacks . | . . . Repair Station Hacks . | . . . Recycling Unit Hacks . | . . . Scanalyzer . | . . . Garrison Access Hacks . | . . . Unauthorized Hacks . | . . . Terminals . | . . . Fabricators . | . . . Repair Stations . | . . . Recycling Units . | . . . Scanalyzers . | . . . Garrison Access . | . . . Data Cores Recovered . | . . . Used . | . . . Hacking Detections 4 | . 4 . Full Trace Events 3 | . 3 . Feedback Events 1 | . 1 . Corruption 1 | . 1 . Feedback Blocked . | . . . Robot Schematics Acquired . | . . . Robots Built . | . . . Matter . | . . . Time . | . . . Total Robot Build Rating . | . . . Part Schematics Acquired . | . . . Parts Built . | . . . Matter . | . . . Time . | . . . Total Part Build Rating . | . . . Parts Repaired . | . . . Time . | . . . Parts Recycled . | . . . Recycled Matter . | . . . Retrieved Matter . | . . . Retrieved Components . | . . . Parts Scanalyzed . | . . . Part Schematics Acquired . | . . . Parts Damaged . | . . . Bothacking | -11 -10 -10 ------------ Run | Scr Mat Min Used RIF Installer . | . . . Robots Hacked . | . . . Non-combat . | . . . Combat . | . . . Robot Hacks Applied . | . . . Relay Couplers Released . | . . . Robots Rewired . | . . . Allies Hacked . | . . . Hacks Repelled . | . . . Allies | -11 -10 -10 -------- Run | Scr Mat Min Total Allies . | . . . Largest Group . | . . . Highest-Rated Group . | . . . Highest-Rated Ally . | . . . Total Orders . | . . . Ally Attacks . | . . . Total Damage . | . . . Kills . | . . . Allies Corrupted . | . . . Allies Melted . | . . . Intel | -11 -10 -10 ------- Run | Scr Mat Min Robot Analysis Total . | . . . Derelict Logs Recovered . | . . . Drone Launches . | . . . Drone Recoveries . | . . . Exploration | -11 -10 -10 ------------- Run | Scr Mat Min Turns Passed 18891 | 17711 783 397 Spaces Moved 5370 | 4669 463 238 Core 19 | 19 . . Treads 4765 | 4650 115 . Legs 586 | . 348 238 Wheels . | . . . Hover . | . . . Flight . | . . . Fastest Speed 50 | 50 120 150 Average Speed 157 | 159 136 150 Slowest Speed 160 | 160 160 150 Overloaded Moves . | . . . Propulsion Burnouts . | . . . Robots Hopped . | . . . Cave-ins Triggered . | . . . Exploration Rate (%) 66 | 99 54 46 Regions Visited 2 Branch Regions 1 Pre-discovered Areas . | . . . Known Exits Taken . | . . . Unknown Exits Taken 2 | 1 1 . Scrap Searched 1 | . . 1 Spaces Dug . | . . . Terrain Destroyed . | . . . Melee . | . . . Projectile . | . . . AOE . | . . . Actions | -11 -10 -10 --------- Run | Scr Mat Min Total 15736 | 14930 548 258 Wait 10253 | 10244 9 . Move 5368 | 4668 462 238 Hop . | . . . Pick Up 24 | 11 11 2 Fast Attach 5 | 1 4 . Attach 14 | 5 6 3 Detach 2 | . . 2 Swap . | . . . Drop 8 | . 8 . Fire 60 | . 48 12 Melee . | . . . Ram . | . . . Kick 1 | . . 1 Crush 1 | 1 . . Escape Stasis . | . . . Rewire . | . . . Trap . | . . . Miscellaneous . | . . . Route ------- -11/Scrapyard -10/Materials (discovered 2 exits: [*Min x2]) -10/Mines History --------- Turn | Location | Event 6 | -11/Scrapyard | Discovered new exit (range 16) 17648 | -11/Scrapyard | Assembled infested the area 17712 | -11/Scrapyard | Entered Materials 17713 | -10/Materials | Build established: Mutant 17822 | -10/Materials | Core integrity fell below 50% 18113 | -10/Materials | Discovered new exit (range 16) 18350 | -10/Materials | Discovered new exit (range 7) 18495 | -10/Materials | Entered Mines 18504 | -10/Mines | Core integrity fell below 20% 18752 | -10/Mines | Assisted by bots powering up and referring to "LRC-V3" 18892 | -10/Mines | Destroyed by YI-UF0 with YI-UF0's Doublenader Last Messages --------------- 18515_ Lgt. Assault Rifle destroyed. 18520_ Ion Engine destroyed. 18520_ Destroyed Ion Engine. 18523_ G-34 Mercenary misfires. 18526_ G-34 Mercenary destroyed. 18529_ Acquired 47 matter. 18541_ Acquired Imp. Heat Sink. 18633_ K-01 Serf collects debris. 18694_ Searching scrap... 18694_ Found 34 Matter. 18694_ Found Lrg. Storage Unit. 18695_ Acquired 1 matter. 18744_ YI-UF0 mumbles something. 18752_ YI-UF0 nonchalantly drops a Grenade Launcher on the ground. 18757_ Acquired Grenade Launcher. 18763_ YI-UF0 mumbles something. 18848_ Slammed into R-06 Scavenger. 18854_ System corrupted: Energy discharge (-108). 18892_ G-34 Mercenary destroyed. 18892_ G-47 Trooper destroyed. Map ----- +----------------------------------------------------+ | | | ??????????????????????????????????????????? | | ??????????????????????????????????????????? | | ??????????????????????????????????????????? | | ??????????????????????????????????????????? | | ??????????????????????????????????????????? | | ??????????????????????????????????????????? | | ??????????????????????????????????????????? | | ??????????????????????????????????????????? | | ??????????????????????????????????????????? | | ??????????????????????????????????????????? | | ??????????????????????????????????????????? | | ??????????????????????????????????????????? | | ??????????????????????????????????????????? | | ??????????????????????????????????????????? | | ??????????????????????????????????????????? | | ??????????????????????????????????????????? | | ??????????????????????????????????????????? | | ?????????????????????????###??????????????? | | ?????????????????????????# ??????????????? | | ?????????????????????????# #??????????????? | | ?????????????????????????# #??????????????? | | ????????????????????????## #??????????????? | | ????????????????????????# #####??????????? | | ??????????????????# ##### #######????? | | ??????????????????# $ @ =%= #????? | | ??????????????????# ##### % ##### #????? | | ????????????????????????####= ##???# #????? | | ???????????????????????????# ##????# #????? | | ???????????????????????????# #?????# #????? | | ???????????????????????????#%#????? ????? | | ???????????????????????????# #????? ????? | | ???????????????????????????# #?????"" ????? | | ???????????????????????????# #?????"" ????? | | ???????????????????????????# ##???""" ???? | | ??????????????????????????## ##?? ???? | | ???????????????????????#### #??? ???? | | ????????????#####?????## ##???? ???? | | ???????????## #???### #????###??? | | ??????????## ##?## #?????????? | | ??????????# ### ##????????? | | ??????????# ## #????????? | | ??????????# #### #????????? | | ???????????# #???###????????? | | ???????????# ##?????????????? | | ???????????## #?????????????? | | ????????????#### #?????????????? | | ???????????????## ##?????????????? | | ????????????????# #??????????????? | | ????????????????# ##??????????????? | +----------------------------------------------------+ Best States ------------- Heat Dissipation 25 Energy Generation 10 Energy Capacity 550 Matter Stores 300 Matter Capacity 300 Sight Range 16 Terrain Scan Density 10 ECM Strength 1 Evasion (%) 50 Recoil Reduction 2 Item Schematics ----------------- None Robot Schematics ------------------ None Fabricated ------------ Nothing Alien Tech Used ----------------- None Achievements -------------- Curiosity Killed The Cat Challenges ------------ None Game ------ Seed TeslaAssaultFilter Manual? 0 Play Time 00:38:02 Cumulative 5.5 hours Start 2019.10.22 @ 10:42:41 End 2019.10.22 @ 11:56:25 Sessions 1 Manual Loads 0 Difficulty Rogue Special Mode None Game No. 8 Rogue 8 Adventurer 0 Explorer 0 Win Type - Total 0 Types 0/0/0/0/0/0/0 Lore% 15 Gallery% 11 Achievement% 11 Wizard Run 0 Options --------- ASCII 0 Keyboard 0 Movement Mouse Keybinds 0 Fullscreen 1 Font 18/SmallcapsGlow Map View 76x50 Tactical HUD 1 Map Filters NONE Filters NONE Steam 1 RUN: 9a5f0151-0e93-4ad6-a9d9-465dc9449e46